Cogmind - Beta 14 @@@ ROGUE MODE // 2025.03.25 @ 14:59:13 Player: Crud Result: Destroyed by S-10 Pest with Light Assault Rifle Performance ------------- Evolutions (1) 500 Regions Visited (2) 400 Robots Destroyed (13) 65 Value Destroyed (154) 154 Prototype IDs (0) 0 Alien Tech Used (0) 0 Bonus (0) 0 TOTAL SCORE: 1119 Bonus ------- None Cogmind --------- Core Integrity 0/400 Matter 300/300 Energy 44/100 System Corruption 0% Temperature Cool (0) Movement Core (50) Location -9/Materials Parts ------- > --- POWER (1) -------- (None) > --- PROPULSION (4) --- (None) > --- UTILITY (2) ------ (None) > --- WEAPON (2) ------- (None) > --- INVENTORY (5) ---- Light Ion Engine Mini Grenade Launcher Peak State ------------ > --- POWER ------------ Light Ion Engine > --- PROPULSION ------- Flight Unit Flight Unit Flight Unit Flight Unit > --- UTILITY ---------- Small Storage Unit > --- WEAPON ----------- Medium Laser Light Assault Rifle > --- INVENTORY -------- Flight Unit Light Assault Rifle [Rating: 8] Favorites ----------- Power Light Ion Engine Engine Light Ion Engine Propulsion Flight Unit Leg Aluminum Leg Wheel Compact Wheel Flight Unit Flight Unit Utility Small Storage Unit Storage Small Storage Unit Weapon Light Assault Rifle Energy Gun Medium Laser Ballistic Gun Light Assault Rifle Build | -11 -10 -9 ------- Run | Yrd Mat Mat Slots Evolved 2 | . . 2 Power . | . . . Propulsion 2 | . . 2 Utility . | . . . Weapon . | . . . Parts Attached 24 | 2 5 17 Power 3 | . 1 2 Engine 3 | . 1 2 Core . | . . . Reactor . | . . . Propulsion 17 | 2 3 12 Treads . | . . . Leg . | . . . Wheel 2 | 2 . . Hover . | . . . Flight 15 | . 3 12 Utility . | . . . Device . | . . . Storage . | . . . Processor . | . . . Hackware . | . . . Protection . | . . . Artifact . | . . . Weapon 4 | . 1 3 Energy Gun 1 | . . 1 Energy Cannon . | . . . Ballistic Gun 3 | . 1 2 Ballistic Cannon . | . . . Launcher . | . . . Special Weapon . | . . . Impact Weapon . | . . . Slashing Weapon . | . . . Piercing Weapon . | . . . Special Melee Weapon . | . . . Unidentified Prototypes . | . . . Parts Lost 20 | . 3 17 Power 2 | . 1 1 Propulsion 13 | . 2 11 Utility 1 | . . 1 Weapon 4 | . . 4 Highest Loss Streak 15 | . 3 15 To Critical Strikes . | . . . Average Slot Usage (%) 69 | . 72 66 Engine 11 | . 13 8 Wheel 4 | . 7 . Flight 24 | . 18 30 Storage 12 | . 14 11 Energy Gun 5 | . 3 8 Ballistic Gun 11 | . 14 7 Peak Build Rating 8 | 6 6 8 Average Rating 5 | 6 5 5 On Entrance 4 | 6 6 2 Naked Turns 1 | . . 1 Heaviest Build 11 | 11 11 11 Greatest Support 26 | 26 26 16 Greatest Overweight (x) 1 | . 1 1 Average Overweight (x) . | . . . Largest Inventory Capacity 8 | 8 8 8 Average Capacity 7 | 8 8 7 Most Carried 8 | 6 8 4 Average Carried 3 | 6 5 1 Final Capacity 8 | 8 8 5 Final Carried 6 | 6 5 2 Class Distribution -------------------- 43% | Mutant 39% | Scavenger-Mutant 16% | Scavenger-Sprinter Dominant Class ---------------- Mutant | -10/Materials Scavenger-Sprinter | -9/Materials Resources | -11 -10 -9 ----------- Run | Yrd Mat Mat Matter Collected 407 | 220 56 131 Remotely . | . . . Salvage Created 202 | . 70 132 Parts 29 | . 10 19 Haulers Intercepted . | . . . Recyclers Shooed . | . . . Parts Field Recycled . | . . . Retrieved Matter . | . . . Parts Self-Destructed . | . . . Prevented . | . . . Kills | -11 -10 -9 ------- Run | Yrd Mat Mat Combat Hostiles Destroyed 13 | . 4 9 Guns 13 | . 4 9 Classes Destroyed 2 | . 2 . Swarmer 12 | . 3 9 Grunt 1 | . 1 . Best Kill Streak 5 | . 3 5 Combat Bots Only 5 | . 3 5 Max Kills in Single Turn 2 | . 2 1 Gunslinging 1 | . 1 . Exploded . | . . . Melee . | . . . Uniques/NPCs Destroyed . | . . . Combat | -11 -10 -9 -------- Run | Yrd Mat Mat Hostile Shots Fired 199 | . 52 147 Missed 66 | . 18 48 Damage Taken 1397 | . 359 1038 Core 517 | . 112 405 Absorbed by Shields . | . . . Core Remaining (%) 77 | 100 55 . Volleys Fired 52 | . 27 25 Largest 2 | . 2 2 Hottest 70 | . 70 70 Shots Fired 73 | . 33 40 Gun 73 | . 33 40 Cannon . | . . . Launcher . | . . . Special . | . . . Kinetic 47 | . 27 20 Thermal 26 | . 6 20 Explosive . | . . . Electromagnetic . | . . . Robot Hit Streak 12 | . 7 12 Robot Miss Streak 5 | . 3 5 Penetration Max . | . . . Secondary Targets 2 | . 1 1 Max Gunslinging Chain 1 | . 1 1 Shots Hit Robots 41 | . 21 20 Core Hits 20 | . 8 12 Critical Kills . | . . . Critical Parts Destroyed . | . . . Critical Strikes . | . . . Melee Attacks . | . . . Impact . | . . . Slashing . | . . . Piercing . | . . . Sneak Attacks . | . . . Combat Hostiles . | . . . Follow-up Attacks . | . . . Damage Inflicted 440 | . 198 242 Guns 440 | . 198 242 Cannons . | . . . Explosions . | . . . Melee . | . . . Ramming . | . . . Kinetic 265 | . 160 105 Thermal 175 | . 38 137 Explosive . | . . . Electromagnetic . | . . . Impact . | . . . Slashing . | . . . Piercing . | . . . Highest Corruption . | . . . Average Corruption . | . . . Corruption Purged . | . . . Corruption Blocked . | . . . Overload Shots . | . . . Overflow Damage . | . . . Projectiles . | . . . Explosions . | . . . Melee . | . . . Knockbacks . | . . . Impact . | . . . Kinetic . | . . . Secondary . | . . . Self-Inflicted Damage . | . . . Shots . | . . . Rammed . | . . . Targets Rammed . | . . . Kicked . | . . . Crushed . | . . . Highest Temperature 316 | . 80 316 Average Temperature 98 | . 23 141 Received Heat Transfer 462 | . 171 291 Effects 1 | . . 1 Energy Bleed 1 | . . 1 Siege Activations . | . . . Robots Corrupted . | . . . Combat Hostiles . | . . . Parts Fried . | . . . Impact Corruptions . | . . . Robots Melted . | . . . Combat Hostiles . | . . . Parts Melted . | . . . Heat Transferred 518 | . 111 407 Parts Sabotaged . | . . . Parts Stolen . | . . . Parts Stripped . | . . . Power Chain Reactions . | . . . Alert | -11 -10 -9 ------- Run | Yrd Mat Mat Peak Influence 325 | . 90 325 Initial 25 | . . 25 Average 102 | . 66 148 Maximum Alert Level 1 | . . 1 Low Security (%) 83 | 100 100 63 Level 1 16 | . . 36 Level 2 . | . . . Level 3 . | . . . Level 4 . | . . . Level 5 . | . . . High Security . | . . . Max Security . | . . . Squads Dispatched 5 | . 2 3 Investigation 4 | . 2 2 Extermination . | . . . Reinforcement 1 | . . 1 Assault . | . . . Garrison . | . . . Intercept . | . . . Searches Triggered . | . . . Construction Impeded . | . . . Haulers Reinforced . | . . . Active Scanning Responses . | . . . Cargo Convoy Interrupts . | . . . Stealth | -11 -10 -9 --------- Run | Yrd Mat Mat Distress Signals . | . . . Communications Jammed . | . . . Distress Signals . | . . . Times Spotted 43 | . 9 34 Peak Tracking Total 19 | . 5 19 Tactical Retreats 4 | . . 4 Traps | -11 -10 -9 ------- Run | Yrd Mat Mat Traps Triggered 1 | . 1 . Indirectly . | . . . Trap Hack Attempts . | . . . Triggered . | . . . Disarmed . | . . . Reprogrammed . | . . . Reused . | . . . Traps Extracted . | . . . Installed . | . . . Triggered . | . . . Machines | -11 -10 -9 ---------- Run | Yrd Mat Mat Machines Disabled . | . . . Max in Single Turn . | . . . Machines Repaired . | . . . Machines Dismantled . | . . . Machines Sabotaged . | . . . Overloaded Fab Kills . | . . . Hacking | -11 -10 -9 --------- Run | Yrd Mat Mat Machines Accessed 4 | . 1 3 Terminals 4 | . 1 3 Fabricators . | . . . Repair Stations . | . . . Recycling Units . | . . . Scanalyzers . | . . . Garrison Access . | . . . Total Hacks 11 | . 3 8 Successful 2 | . . 2 Failed 9 | . 3 6 Catastrophic 6 | . 2 4 Database Lockouts . | . . . Manual 10 | . 3 7 Terminals 11 | . 3 8 Fabricators . | . . . Repair Stations . | . . . Recycling Units . | . . . Scanalyzers . | . . . Garrison Access . | . . . Terminal Hacks . | . . . Fabricator Hacks . | . . . Repair Station Hacks . | . . . Recycling Unit Hacks . | . . . Scanalyzer . | . . . Garrison Access Hacks . | . . . Unauthorized Hacks 2 | . . 2 Terminals 2 | . . 2 Track 1 | . . 1 Botnet 1 | . . 1 Fabricators . | . . . Repair Stations . | . . . Recycling Units . | . . . Scanalyzers . | . . . Garrison Access . | . . . Data Cores Recovered . | . . . Used . | . . . Hacking Detections 4 | . 1 3 Full Trace Events 4 | . 1 3 Feedback Events . | . . . Feedback Blocked . | . . . Robot Schematics Acquired . | . . . Robots Built . | . . . Authchips . | . . . Time . | . . . Total Robot Build Rating . | . . . Part Schematics Acquired . | . . . Parts Built . | . . . Authchips . | . . . Time . | . . . Total Part Build Rating . | . . . Parts Repaired . | . . . Time . | . . . Parts Recycled . | . . . Recycled Matter . | . . . Retrieved Matter . | . . . Retrieved Components . | . . . Parts Scanalyzed . | . . . Part Schematics Acquired . | . . . Parts Damaged . | . . . Bothacking | -11 -10 -9 ------------ Run | Yrd Mat Mat Used RIF Installer . | . . . Robots Hacked . | . . . Non-combat . | . . . Combat . | . . . Robot Hacks Applied . | . . . Relay Couplers Released . | . . . Fabnet Peak Effective % . | . . . Robots Rewired . | . . . Allies Hacked . | . . . Hacks Repelled . | . . . Allies | -11 -10 -9 -------- Run | Yrd Mat Mat Total Allies . | . . . Largest Group . | . . . Highest-Rated Group . | . . . Highest-Rated Ally . | . . . Total Orders . | . . . Ally Attacks . | . . . Total Damage . | . . . Kills . | . . . Allies Corrupted . | . . . Allies Melted . | . . . Intel | -11 -10 -9 ------- Run | Yrd Mat Mat Robot Analysis Total . | . . . Derelict Logs Recovered . | . . . Drone Launches . | . . . Drone Recoveries . | . . . Exploration | -11 -10 -9 ------------- Run | Yrd Mat Mat Turns Passed 421 | 5 224 192 Spaces Moved 315 | 2 136 177 Core 5 | . 1 4 Treads . | . . . Legs 1 | 1 . . Wheels 42 | 1 41 . Hover . | . . . Flight 267 | . 94 173 Fastest Speed 31 | 90 90 31 Average Speed 68 | 105 108 37 Slowest Speed 120 | 120 117 120 Overloaded Moves . | . . . Propulsion Burnouts . | . . . Robots Hopped 6 | . . 6 Cave-ins Triggered . | . . . Exploration Rate (%) 16 | 2 21 26 Regions Visited 2 Branch Regions . Pre-discovered Areas . | . . . Known Exits Taken . | . . . Unknown Exits Taken 2 | 1 1 . Scrap Searched . | . . . Spaces Dug . | . . . Terrain Destroyed . | . . . Melee . | . . . Projectile . | . . . AOE . | . . . Terrain Rammed . | . . . Walls Destroyed . | . . . Machines Disabled . | . . . Actions | -11 -10 -9 --------- Run | Yrd Mat Mat Total 447 | 3 188 256 Wait 41 | . 3 38 Move 303 | 1 135 167 Hop 4 | . . 4 Pick Up 13 | . 8 5 Fast Attach 5 | . . 5 Attach 12 | . 2 10 Detach . | . . . Swap 7 | 2 3 2 Drop 10 | . 10 . Fire 52 | . 27 25 Melee . | . . . Ram . | . . . Kick . | . . . Crush . | . . . Escape Stasis . | . . . Rewire . | . . . Trap . | . . . Miscellaneous . | . . . Route ------- -11/Scrapyard -10/Materials -9/Materials (discovered 1 exit: [*Min]) History --------- Turn | Location | Event 1 | -11/Scrapyard | Discovered new exit (range 1) 6 | -11/Scrapyard | Entered Materials 210 | -10/Materials | Discovered new exit (range 5) 230 | -10/Materials | Entered another Materials area 230 | -9/Materials | Evolved 2 slots: Propulsion x2 258 | -9/Materials | Lost 3 parts (1p2n) 398 | -9/Materials | Core integrity fell below 50% 413 | -9/Materials | Discovered new exit (range 16) 417 | -9/Materials | Core integrity fell below 20% 422 | -9/Materials | Destroyed by S-10 Pest with Light Assault Rifle Last Messages --------------- 00392_ Lgt. Assault Rifle destroyed. 00395_ Flight Unit destroyed. 00398_ Acquired Flight Unit. 00401_ R-06 Scavenger destroyed. 00402_ R-06 Scavenger collects Lgt. Ion Engine. 00403_ Acquired Flight Unit. 00405_ R-06 Scavenger collects Flight Unit. 00407_ Acquired Flight Unit. 00408_ Acquired 57 matter. 00409_ Acquired 23 matter. [Achievement: Cya!] 00411_ Flight Unit destroyed. 00411_ K-01 Serf cleans the Material Compactor. 00413_ Flight Unit destroyed. 00413_ EXIT=FOUND 00416_ Flight Unit destroyed. 00416_ Acquired Mni. Grenade Launcher. 00420_ K-01 Serf cleans the Material Compactor. 00420_ Flight Unit destroyed. 00421_ Sml. Storage Unit destroyed. Map ----- +----------------------------------------------------+ | ?????????????????????????????????????????????????? | | ?????????????????????????????????????????????????? | | ???????????????????????????????????????????????### | | ???????????????????????????????????????????????# | | ???????????????????????????????????????????????# | | ???????????????????????????????????????????????# " | | ???????????????????????????????????????????????# T | | ???????????????????????????????????????????????# " | | ???????????????????????????????????????????????# | | ???????????????????????????????????????????????### | | ?????????????????????????????????????????????????? | | ?????????????????????????????????????????????????? | | ??????????????????????????????#####+######?####### | | ??????????????????????????????# | | ??????????????????????????????# | | ?????????????????????????###### | | ?????????????????????????# ! ## #?####### | | ?????????????????????????# ## #???????? | | ?????????????????????????# *|## #???????? | | ?????????????????????????# ||## #???????? | | ?????????????????????????# ## #???????? | | ?????????????????????????# ## +???????? | | ?????????????????######### ?# #???????? | | ?????????????##### ##+### #???????? | | ?????????? k w ]=! #???????? | | ?????????? < @ = o#???????? | | ?????????? k au u ]= #???????? | | ?????????????##### #k #???????? | | ?????????????????# "|"!" # #####???? | | ?????????????????#""|"!""# ws ##### | | ?????????????????######### | | ??????????????????????? s sa ##### | | ???????????????????????# #######/####### | | ???????????????????????# "#??# | | ???????????????????????# """k wT#??#%""""""" # | | ???????????????????????# """"" "#??# """"""" # | | ???????????????????????# """"" ##??# """"""" # | | ???????????????????????# ""?"" ???# """"""" # | | ???????????????????????# ??? ???# """"%"" # | | ???????????????????????# ???? ???# [ [% # | | ????????????????????????? ???? ???# = =% # | | ????????????????????????????????##?????########### | | ?????????????????????????????????????????????????? | | ?????????????????????????????????????????????????? | | ?????????????????????????????????????????????????? | | ?????????????????????????????????????????????????? | | ?????????????????????????????????????????????????? | | ?????????????????????????????????????????????????? | | ?????????????????????????????????????????????????? | | ?????????????????????????????????????????????????? | +----------------------------------------------------+ Best States ------------- Heat Dissipation 28 Energy Generation 10 Energy Capacity 125 Matter Stores 300 Matter Capacity 300 Sight Range 16 Terrain Scan Density 10 Evasion (%) 63 Item Schematics ----------------- None Robot Schematics ------------------ None Fabricated ------------ Nothing Alien Tech Used ----------------- None Achievements -------------- Cya! Challenges ------------ None Game ------ Seed SpikedRelayArticulator Manual? 0 Play Time 00:11:09 Cumulative 39.1 hours Start 2025.03.25 @ 14:48:09 End 2025.03.25 @ 14:59:13 Sessions 1 Manual Loads 0 Difficulty Rogue Special Mode None Game No. 46 Rogue 46 Adventurer 0 Explorer 0 Win Type - Total 0 Types 0/0/0/0/0/0/0/0/0 Lore% 22 Gallery% 35 Achievement% 29 Wizard Run 0 Options --------- Layout 1 ASCII 0 Keyboard 0 Movement Mouse Keybinds 0 Fullscreen 2 Font 48/Smallcaps Map View 50x35 Zoom Use 0% Tactical HUD 1 Map Filters NONE Filters NONE Steam 1 RUN: 64941daa-a685-4863-86c8-5b2b560ab79b